[Event "*** Titled Tuesday Blitz"]
[Site "Chess.com"]
[Date "2020.05.12"]
[Round "10"]
[White "Isajevsky_Anton"]
[Black "chenxiaoyuer"]
[Result "1/2-1/2"]
[WhiteElo "2389"]
[BlackElo "2243"]
[TimeControl "180+1"]
[EndTime "11:53:21 PDT"]
[Termination "Game drawn by agreement"]

1. c4 {[%clk 0:02:57.5]} 1... Nf6 {[%clk 0:02:59]} 2. Nc3 {[%clk 0:02:57.2]}
2... g6 {[%clk 0:02:59]} 3. g3 {[%clk 0:02:54.2]} 3... Bg7 {[%clk 0:02:58.6]} 4.
Bg2 {[%clk 0:02:54.1]} 4... O-O {[%clk 0:02:58.6]} 5. e4 {[%clk 0:02:54.1]} 5...
d6 {[%clk 0:02:58.6]} 6. Nge2 {[%clk 0:02:53.6]} 6... c5 {[%clk 0:02:58.6]} 7.
O-O {[%clk 0:02:53.1]} 7... Nc6 {[%clk 0:02:58.4]} 8. d3 {[%clk 0:02:52.3]} 8...
Ne8 {[%clk 0:02:57.8]} 9. Be3 {[%clk 0:02:50.6]} 9... Nc7 {[%clk 0:02:57.2]} 10.
Rb1 {[%clk 0:02:49.1]} 10... Ne6 {[%clk 0:02:55.7]} 11. a3 {[%clk 0:02:49.5]}
11... a5 {[%clk 0:02:54.5]} 12. Nd5 {[%clk 0:02:45]} 12... Ned4 {[%clk
0:02:48.1]} 13. Nxd4 {[%clk 0:02:40.2]} 13... Nxd4 {[%clk 0:02:45.3]} 14. b4
{[%clk 0:02:39.7]} 14... axb4 {[%clk 0:02:42.5]} 15. axb4 {[%clk 0:02:39.6]}
15... e6 {[%clk 0:02:36.4]} 16. Nc3 {[%clk 0:02:32.8]} 16... Nc6 {[%clk
0:02:30.8]} 17. Nb5 {[%clk 0:02:17.4]} 17... Nxb4 {[%clk 0:02:22.1]} 18. f4
{[%clk 0:01:59.6]} 18... Nc6 {[%clk 0:02:12.9]} 19. e5 {[%clk 0:01:58.3]} 19...
dxe5 {[%clk 0:02:08.5]} 20. Bxc5 {[%clk 0:01:57.7]} 20... exf4 {[%clk
0:02:05.8]} 21. gxf4 {[%clk 0:01:53.3]} 21... Re8 {[%clk 0:01:59.1]} 22. d4
{[%clk 0:01:35.9]} 22... Bf8 {[%clk 0:01:55.3]} 23. Bxf8 {[%clk 0:01:31.3]}
23... Rxf8 {[%clk 0:01:54.6]} 24. d5 {[%clk 0:01:32.2]} 24... exd5 {[%clk
0:01:52.1]} 25. cxd5 {[%clk 0:01:33.1]} 25... Ne7 {[%clk 0:01:50.6]} 26. d6
{[%clk 0:01:32.6]} 26... Nf5 {[%clk 0:01:50.1]} 27. Qd2 {[%clk 0:01:10.4]} 27...
Ra6 {[%clk 0:01:40.8]} 28. Rfd1 {[%clk 0:01:05.3]} 28... Bd7 {[%clk 0:01:35.1]}
29. Bxb7 {[%clk 0:00:41.8]} 29... Qb6+ {[%clk 0:01:31.2]} 30. Nd4 {[%clk
0:00:39.7]} 30... Qxd4+ {[%clk 0:01:23.7]} 31. Qxd4 {[%clk 0:00:39.6]} 31...
Nxd4 {[%clk 0:01:22.7]} 32. Rxd4 {[%clk 0:00:40.5]} 32... Ra7 {[%clk 0:01:19.7]}
33. Bf3 {[%clk 0:00:38.6]} 33... Bf5 {[%clk 0:01:17.5]} 34. Rbd1 {[%clk
0:00:37]} 34... Rd8 {[%clk 0:01:16.8]} 35. Kf2 {[%clk 0:00:37.3]} 35... Ra2+
{[%clk 0:01:15]} 36. Kg3 {[%clk 0:00:37.7]} 36... Kg7 {[%clk 0:01:12.8]} 37. h3
{[%clk 0:00:19.7]} 37... h5 {[%clk 0:01:09.7]} 38. h4 {[%clk 0:00:19.5]} 38...
Kf6 {[%clk 0:01:09.2]} 39. R1d2 {[%clk 0:00:19.2]} 39... Rxd2 {[%clk 0:01:07.1]}
40. Rxd2 {[%clk 0:00:20.1]} 40... Ke6 {[%clk 0:01:02.6]} 41. Bd5+ {[%clk
0:00:20.4]} 41... Kf6 {[%clk 0:01:02.5]} 42. Bc6 {[%clk 0:00:19.8]} 42... Be6
{[%clk 0:01:01.3]} 43. Be4 {[%clk 0:00:19.3]} 43... Bf5 {[%clk 0:00:56.9]} 44.
Bc6 {[%clk 0:00:19]} 44... Bg4 {[%clk 0:00:56.7]} 45. Kf2 {[%clk 0:00:18.7]}
45... Bf5 {[%clk 0:00:49]} 46. Ke3 {[%clk 0:00:18.6]} 1/2-1/2

[Event "*** Titled Tuesday Blitz"]
[Site "Chess.com"]
[Date "2020.05.12"]
[Round "10"]
[White "top_bu_tz"]
[Black "Shushik"]
[Result "1-0"]
[WhiteElo "2214"]
[BlackElo "2084"]
[TimeControl "180+1"]
[EndTime "11:53:22 PDT"]
[Termination "top_bu_tz won by resignation"]

1. e4 {[%clk 0:03:00.9]} 1... e5 {[%clk 0:03:00.1]} 2. Nf3 {[%clk 0:03:00.5]}
2... Nc6 {[%clk 0:02:59.2]} 3. Bb5 {[%clk 0:03:00.3]} 3... Nf6 {[%clk
0:02:59.1]} 4. O-O {[%clk 0:03:00.5]} 4... Nxe4 {[%clk 0:02:58.2]} 5. Re1 {[%clk
0:03:00.7]} 5... Nd6 {[%clk 0:02:58]} 6. Nxe5 {[%clk 0:03:01.2]} 6... Be7 {[%clk
0:02:56.5]} 7. Bf1 {[%clk 0:02:56.8]} 7... O-O {[%clk 0:02:56.1]} 8. Nf3 {[%clk
0:02:55.8]} 8... Nf5 {[%clk 0:02:46.2]} 9. d4 {[%clk 0:02:52.1]} 9... d5 {[%clk
0:02:43.8]} 10. c3 {[%clk 0:02:49]} 10... Bf6 {[%clk 0:02:36.6]} 11. Bd3 {[%clk
0:02:48.2]} 11... Be6 {[%clk 0:02:12.7]} 12. Qc2 {[%clk 0:02:47.8]} 12... Qd7
{[%clk 0:02:11.1]} 13. Nbd2 {[%clk 0:02:30.4]} 13... Rfe8 {[%clk 0:02:03.5]} 14.
Nf1 {[%clk 0:02:29.3]} 14... g6 {[%clk 0:01:39.2]} 15. Ng3 {[%clk 0:02:20.6]}
15... Nxg3 {[%clk 0:01:38.3]} 16. hxg3 {[%clk 0:02:20.9]} 16... Bg7 {[%clk
0:01:37.3]} 17. Bf4 {[%clk 0:02:18.8]} 17... Bg4 {[%clk 0:01:31.9]} 18. Qd2
{[%clk 0:02:03.9]} 18... Bf5 {[%clk 0:01:15.2]} 19. Bxf5 {[%clk 0:01:35]} 19...
Qxf5 {[%clk 0:01:14.2]} 20. Rxe8+ {[%clk 0:01:35.9]} 20... Rxe8 {[%clk
0:01:13.5]} 21. Re1 {[%clk 0:01:36.8]} 21... Re4 {[%clk 0:01:07]} 22. Bxc7
{[%clk 0:01:31.5]} 22... h6 {[%clk 0:01:02.2]} 23. Rxe4 {[%clk 0:01:18.7]} 23...
Qxe4 {[%clk 0:00:59.1]} 24. Qe1 {[%clk 0:01:18]} 24... Qf5 {[%clk 0:00:42]} 25.
Ne5 {[%clk 0:01:02.5]} 25... Qe6 {[%clk 0:00:35.1]} 26. Nd3 {[%clk 0:00:46.7]}
26... Qf5 {[%clk 0:00:33.4]} 27. Qe3 {[%clk 0:00:38.6]} 27... Kh7 {[%clk
0:00:30.8]} 28. Qf3 {[%clk 0:00:30]} 28... Qe6 {[%clk 0:00:27.6]} 29. Nf4 {[%clk
0:00:29.3]} 29... Qe1+ {[%clk 0:00:22.2]} 30. Kh2 {[%clk 0:00:29.3]} 30... Qd2
{[%clk 0:00:20.2]} 31. Nxd5 {[%clk 0:00:26.6]} 31... Qxb2 {[%clk 0:00:20.1]} 32.
Qxf7 {[%clk 0:00:26.4]} 32... Qxa2 {[%clk 0:00:19.4]} 33. Nf6+ {[%clk
0:00:25.5]} 33... Kh8 {[%clk 0:00:19.3]} 34. Qe8+ {[%clk 0:00:19.2]} 1-0

[Event "*** Titled Tuesday Blitz"]
[Site "Chess.com"]
[Date "2020.05.12"]
[Round "10"]
[White "Usurpov"]
[Black "mjray79"]
[Result "1-0"]
[WhiteElo "2439"]
[BlackElo "2277"]
[TimeControl "180+1"]
[EndTime "11:53:25 PDT"]
[Termination "Usurpov won by resignation"]

1. e4 {[%clk 0:03:00.9]} 1... e5 {[%clk 0:03:00.2]} 2. Nf3 {[%clk 0:03:00.6]}
2... Nc6 {[%clk 0:03:00.6]} 3. Nc3 {[%clk 0:03:01.2]} 3... Nf6 {[%clk
0:02:58.6]} 4. d4 {[%clk 0:03:01.3]} 4... exd4 {[%clk 0:02:58.1]} 5. Nxd4 {[%clk
0:03:02.2]} 5... Bb4 {[%clk 0:02:58.3]} 6. Nxc6 {[%clk 0:03:02.1]} 6... bxc6
{[%clk 0:02:59.2]} 7. Bd3 {[%clk 0:03:02.5]} 7... d5 {[%clk 0:02:59.6]} 8. exd5
{[%clk 0:03:03.4]} 8... cxd5 {[%clk 0:03:00.2]} 9. O-O {[%clk 0:03:03.9]} 9...
O-O {[%clk 0:03:00]} 10. Qf3 {[%clk 0:03:03.2]} 10... Be7 {[%clk 0:02:53.3]} 11.
Bg5 {[%clk 0:02:55.3]} 11... Be6 {[%clk 0:02:51.5]} 12. Rae1 {[%clk 0:02:47.3]}
12... c5 {[%clk 0:02:47.8]} 13. Ne2 {[%clk 0:02:32.1]} 13... h6 {[%clk
0:02:37.2]} 14. Bxf6 {[%clk 0:02:17.5]} 14... Bxf6 {[%clk 0:02:38.1]} 15. c3
{[%clk 0:02:16.5]} 15... Qd7 {[%clk 0:02:07.1]} 16. Nf4 {[%clk 0:02:11.9]} 16...
Rab8 {[%clk 0:02:06.6]} 17. b3 {[%clk 0:02:06.7]} 17... Bxc3 {[%clk 0:01:57.6]}
18. Bh7+ {[%clk 0:01:43.2]} 18... Kxh7 {[%clk 0:01:56.9]} 19. Qxc3 {[%clk
0:01:44.1]} 19... Qd6 {[%clk 0:01:39.8]} 20. Re5 {[%clk 0:01:33.3]} 20... Rb4
{[%clk 0:01:22.3]} 21. Nxd5 {[%clk 0:01:04.8]} 21... Bxd5 {[%clk 0:01:16.3]} 22.
Qd3+ {[%clk 0:01:01.1]} 22... Kg8 {[%clk 0:01:12.9]} 23. Rxd5 {[%clk 0:01:00.7]}
23... Qc6 {[%clk 0:01:06.7]} 24. Rc1 {[%clk 0:00:59.6]} 24... Rc8 {[%clk
0:00:40.6]} 25. h3 {[%clk 0:00:48.5]} 25... Rf4 {[%clk 0:00:27.8]} 26. g3 {[%clk
0:00:40.3]} 26... Rf6 {[%clk 0:00:24.6]} 27. b4 {[%clk 0:00:37.6]} 27... Qe6
{[%clk 0:00:21.8]} 28. bxc5 {[%clk 0:00:25.8]} 28... Qxh3 {[%clk 0:00:19.2]} 29.
c6 {[%clk 0:00:20.7]} 29... Qe6 {[%clk 0:00:12.1]} 30. c7 {[%clk 0:00:19.4]}
30... Qb6 {[%clk 0:00:08.5]} 31. Rd8+ {[%clk 0:00:18.6]} 1-0

[Event "*** Titled Tuesday Blitz"]
[Site "Chess.com"]
[Date "2020.05.12"]
[Round "10"]
[White "katchesskat"]
[Black "NotFischer"]
[Result "0-1"]
[WhiteElo "2227"]
[BlackElo "2135"]
[TimeControl "180+1"]
[EndTime "11:53:26 PDT"]
[Termination "NotFischer won by checkmate"]

1. c4 {[%clk 0:03:00.9]} 1... g6 {[%clk 0:02:55.2]} 2. d4 {[%clk 0:02:58.6]}
2... Bg7 {[%clk 0:02:56.1]} 3. Nc3 {[%clk 0:02:58.3]} 3... d6 {[%clk 0:02:56.4]}
4. e4 {[%clk 0:02:58.1]} 4... Nc6 {[%clk 0:02:56.7]} 5. Nf3 {[%clk 0:02:53.7]}
5... Bg4 {[%clk 0:02:54.6]} 6. Be3 {[%clk 0:02:52.2]} 6... e5 {[%clk 0:02:54]}
7. dxe5 {[%clk 0:02:49.7]} 7... Nxe5 {[%clk 0:02:50.1]} 8. Be2 {[%clk
0:02:49.3]} 8... Bxf3 {[%clk 0:02:49.8]} 9. gxf3 {[%clk 0:02:48.7]} 9... Nf6
{[%clk 0:02:48.2]} 10. f4 {[%clk 0:02:45.5]} 10... Nc6 {[%clk 0:02:47.7]} 11.
Qd2 {[%clk 0:02:32.8]} 11... O-O {[%clk 0:02:46.8]} 12. O-O-O {[%clk 0:02:32.9]}
12... Re8 {[%clk 0:02:45.7]} 13. Bd3 {[%clk 0:02:32.3]} 13... Ng4 {[%clk
0:02:33]} 14. h4 {[%clk 0:02:30]} 14... h5 {[%clk 0:02:24.4]} 15. Rdg1 {[%clk
0:02:29]} 15... Nxe3 {[%clk 0:02:07.7]} 16. fxe3 {[%clk 0:02:28.3]} 16... Nb4
{[%clk 0:02:04.8]} 17. Bb1 {[%clk 0:02:27.5]} 17... c6 {[%clk 0:01:52.6]} 18. a3
{[%clk 0:02:25.8]} 18... Na6 {[%clk 0:01:48.1]} 19. f5 {[%clk 0:02:23.6]} 19...
Qf6 {[%clk 0:01:34.2]} 20. fxg6 {[%clk 0:02:16]} 20... fxg6 {[%clk 0:01:35.1]}
21. e5 {[%clk 0:02:14.7]} 21... Qxe5 {[%clk 0:01:31.8]} 22. Bxg6 {[%clk
0:01:59.8]} 22... Nc5 {[%clk 0:01:29.6]} 23. Qg2 {[%clk 0:01:44.8]} 23... Re7
{[%clk 0:01:08]} 24. e4 {[%clk 0:01:38.6]} 24... Rf8 {[%clk 0:01:05.9]} 25. Bf5
{[%clk 0:01:31.5]} 25... Nb3+ {[%clk 0:00:58.8]} 26. Kb1 {[%clk 0:01:24.2]}
26... Nd4 {[%clk 0:00:58.7]} 27. Bg6 {[%clk 0:00:58.4]} 27... b5 {[%clk
0:00:51.5]} 28. cxb5 {[%clk 0:00:56.3]} 28... cxb5 {[%clk 0:00:51.2]} 29. Nd5
{[%clk 0:00:55.2]} 29... Rb7 {[%clk 0:00:41.8]} 30. Qd2 {[%clk 0:00:49.8]} 30...
Nf3 {[%clk 0:00:33.1]} 31. Qe2 {[%clk 0:00:47.3]} 31... Nxg1 {[%clk 0:00:30.9]}
32. Rxg1 {[%clk 0:00:48.2]} 32... b4 {[%clk 0:00:26.3]} 33. axb4 {[%clk
0:00:44.9]} 33... a5 {[%clk 0:00:25.7]} 34. Rg2 {[%clk 0:00:42.8]} 34... axb4
{[%clk 0:00:19.5]} 35. Rg5 {[%clk 0:00:42.4]} 35... Qd4 {[%clk 0:00:17.4]} 36.
Rxh5 {[%clk 0:00:39.8]} 36... Rf1+ {[%clk 0:00:15.7]} 37. Ka2 {[%clk 0:00:33]}
37... b3+ {[%clk 0:00:14]} 38. Ka3 {[%clk 0:00:30.9]} 38... Qa7+ {[%clk
0:00:13.4]} 39. Qa6 {[%clk 0:00:28.5]} 39... Qxa6# {[%clk 0:00:13.2]} 0-1

[Event "*** Titled Tuesday Blitz"]
[Site "Chess.com"]
[Date "2020.05.12"]
[Round "10"]
[White "CaspiIsrael"]
[Black "Alomaterapia"]
[Result "1-0"]
[WhiteElo "2649"]
[BlackElo "2512"]
[TimeControl "180+1"]
[EndTime "11:53:27 PDT"]
[Termination "CaspiIsrael won on time"]

1. e4 {[%clk 0:03:00.9]} 1... c6 {[%clk 0:02:59.3]} 2. d4 {[%clk 0:03:00.6]}
2... d5 {[%clk 0:02:59.5]} 3. e5 {[%clk 0:03:01.1]} 3... Bf5 {[%clk 0:02:59]} 4.
h4 {[%clk 0:03:01.3]} 4... Qb6 {[%clk 0:02:58.9]} 5. h5 {[%clk 0:02:51.3]} 5...
h6 {[%clk 0:02:57.9]} 6. Nc3 {[%clk 0:02:36.9]} 6... e6 {[%clk 0:02:56.1]} 7.
Na4 {[%clk 0:02:24.6]} 7... Qa5+ {[%clk 0:02:53.3]} 8. c3 {[%clk 0:02:24.7]}
8... b5 {[%clk 0:02:53.6]} 9. Nc5 {[%clk 0:02:19.3]} 9... Bxc5 {[%clk
0:02:54.1]} 10. dxc5 {[%clk 0:02:20.2]} 10... Nd7 {[%clk 0:02:54.6]} 11. Qd4
{[%clk 0:02:14]} 11... Ne7 {[%clk 0:02:51.5]} 12. g4 {[%clk 0:02:09.3]} 12...
Be4 {[%clk 0:02:49.8]} 13. f3 {[%clk 0:02:09.2]} 13... Bh7 {[%clk 0:02:47.5]}
14. Bf4 {[%clk 0:01:57.1]} 14... Qc7 {[%clk 0:02:41]} 15. Nh3 {[%clk 0:01:46.4]}
15... a5 {[%clk 0:02:41]} 16. a4 {[%clk 0:01:40.1]} 16... b4 {[%clk 0:02:40.2]}
17. cxb4 {[%clk 0:01:31.5]} 17... axb4 {[%clk 0:02:41.1]} 18. b3 {[%clk
0:01:31.2]} 18... O-O {[%clk 0:02:06.3]} 19. Rh2 {[%clk 0:01:31]} 19... Qa7
{[%clk 0:01:44.8]} 20. Rc1 {[%clk 0:01:29.6]} 20... f6 {[%clk 0:01:43.8]} 21.
exf6 {[%clk 0:01:29.4]} 21... Rxf6 {[%clk 0:01:24.7]} 22. Be2 {[%clk 0:01:17.7]}
22... Re8 {[%clk 0:00:37]} 23. Bd6 {[%clk 0:00:59.5]} 23... e5 {[%clk
0:00:26.2]} 24. Bxe5 {[%clk 0:00:58.9]} 24... Re6 {[%clk 0:00:26.5]} 25. Bxg7
{[%clk 0:00:53.7]} 25... Nc8 {[%clk 0:00:14.9]} 26. Nf4 {[%clk 0:00:52.6]} 26...
R6e7 {[%clk 0:00:12.8]} 27. Bxh6 {[%clk 0:00:52.1]} 27... Qc7 {[%clk 0:00:11.3]}
28. Rf2 {[%clk 0:00:49]} 28... Ne5 {[%clk 0:00:10.9]} 29. Kf1 {[%clk 0:00:48]}
29... Rf7 {[%clk 0:00:10.8]} 30. Kg2 {[%clk 0:00:46.8]} 30... Nd7 {[%clk
0:00:06.7]} 31. Bd3 {[%clk 0:00:43.1]} 31... Qe5 {[%clk 0:00:04.4]} 32. Qxe5
{[%clk 0:00:40.4]} 32... Nxe5 {[%clk 0:00:04.3]} 33. Bxh7+ {[%clk 0:00:40.2]}
33... Rxh7 {[%clk 0:00:04.9]} 34. Bg5 {[%clk 0:00:39.5]} 34... Rf8 {[%clk
0:00:04.7]} 35. Re1 {[%clk 0:00:36.6]} 35... Nd7 {[%clk 0:00:01.4]} 36. Ne6
{[%clk 0:00:35.2]} 36... Rff7 {[%clk 0:00:01.3]} 37. f4 {[%clk 0:00:34.4]} 1-0

[Event "*** Titled Tuesday Blitz"]
[Site "Chess.com"]
[Date "2020.05.12"]
[Round "10"]
[White "politeplayer"]
[Black "grandcoach"]
[Result "1-0"]
[WhiteElo "2193"]
[BlackElo "2029"]
[TimeControl "180+1"]
[EndTime "11:53:28 PDT"]
[Termination "politeplayer won on time"]

1. e4 {[%clk 0:02:59.6]} 1... c5 {[%clk 0:02:59.4]} 2. Nf3 {[%clk 0:02:58.5]}
2... e6 {[%clk 0:03:00]} 3. d4 {[%clk 0:02:57.9]} 3... cxd4 {[%clk 0:03:00.8]}
4. Nxd4 {[%clk 0:02:52.8]} 4... a6 {[%clk 0:03:00.9]} 5. Bd3 {[%clk 0:02:50.8]}
5... Bc5 {[%clk 0:02:53.3]} 6. Nb3 {[%clk 0:02:48.5]} 6... Ba7 {[%clk
0:02:53.9]} 7. Qe2 {[%clk 0:02:44.7]} 7... Nc6 {[%clk 0:02:53.2]} 8. Be3 {[%clk
0:02:34.2]} 8... b5 {[%clk 0:02:48.7]} 9. N1d2 {[%clk 0:02:03]} 9... Nf6 {[%clk
0:02:35.3]} 10. O-O {[%clk 0:01:56.3]} 10... O-O {[%clk 0:02:33.7]} 11. Bxa7
{[%clk 0:01:50.8]} 11... Rxa7 {[%clk 0:02:34.6]} 12. Kh1 {[%clk 0:01:48.2]}
12... d6 {[%clk 0:02:09.6]} 13. f4 {[%clk 0:01:45.2]} 13... Rc7 {[%clk
0:02:05.6]} 14. Rf3 {[%clk 0:01:40.2]} 14... Bb7 {[%clk 0:02:05.2]} 15. Rh3
{[%clk 0:01:39.1]} 15... Nb4 {[%clk 0:01:50.9]} 16. Nf3 {[%clk 0:01:29.7]} 16...
Nxd3 {[%clk 0:01:46.8]} 17. cxd3 {[%clk 0:01:27.4]} 17... Qe7 {[%clk 0:01:33.6]}
18. Rf1 {[%clk 0:01:12.9]} 18... Rfc8 {[%clk 0:01:32.7]} 19. Qf2 {[%clk
0:01:01.4]} 19... Rc2 {[%clk 0:00:57.5]} 20. Qh4 {[%clk 0:00:59.2]} 20... h6
{[%clk 0:00:49.4]} 21. Rg3 {[%clk 0:00:49.4]} 21... Kf8 {[%clk 0:00:28.1]} 22.
e5 {[%clk 0:00:45.2]} 22... dxe5 {[%clk 0:00:26]} 23. fxe5 {[%clk 0:00:40.1]}
23... Nh7 {[%clk 0:00:24.4]} 24. Qg4 {[%clk 0:00:39.5]} 24... Ng5 {[%clk
0:00:22]} 25. h4 {[%clk 0:00:32.6]} 25... Bxf3 {[%clk 0:00:15.2]} 26. gxf3
{[%clk 0:00:29.9]} 26... Qa7 {[%clk 0:00:03.8]} 27. hxg5 {[%clk 0:00:28]} 27...
Rf2 {[%clk 0:00:03.8]} 28. Rfg1 {[%clk 0:00:24.5]} 28... Rcc2 {[%clk 0:00:02.6]}
29. Rh3 {[%clk 0:00:22.3]} 29... Qe3 {[%clk 0:00:01.9]} 30. gxh6 {[%clk
0:00:20.8]} 1-0

[Event "*** Titled Tuesday Blitz"]
[Site "Chess.com"]
[Date "2020.05.12"]
[Round "10"]
[White "Stronger1799"]
[Black "Kaliopa"]
[Result "1-0"]
[WhiteElo "2309"]
[BlackElo "2115"]
[TimeControl "180+1"]
[EndTime "11:53:29 PDT"]
[Termination "Stronger1799 won on time"]

1. e4 {[%clk 0:03:00.9]} 1... c5 {[%clk 0:02:51.9]} 2. Nf3 {[%clk 0:02:56.2]}
2... Nc6 {[%clk 0:02:52]} 3. d4 {[%clk 0:02:56.2]} 3... cxd4 {[%clk 0:02:52.9]}
4. Nxd4 {[%clk 0:02:57]} 4... Nf6 {[%clk 0:02:53.8]} 5. Nc3 {[%clk 0:02:57.5]}
5... e5 {[%clk 0:02:54]} 6. Ndb5 {[%clk 0:02:57.8]} 6... d6 {[%clk 0:02:53.9]}
7. a4 {[%clk 0:02:58]} 7... a6 {[%clk 0:02:44.8]} 8. Na3 {[%clk 0:02:58.6]} 8...
Be6 {[%clk 0:02:44.7]} 9. Bc4 {[%clk 0:02:58.7]} 9... Be7 {[%clk 0:02:34.4]} 10.
O-O {[%clk 0:02:58.5]} 10... O-O {[%clk 0:02:33.4]} 11. Re1 {[%clk 0:02:59.1]}
11... Rc8 {[%clk 0:02:32.8]} 12. Nd5 {[%clk 0:02:57.9]} 12... Bxd5 {[%clk
0:02:22]} 13. exd5 {[%clk 0:02:58.4]} 13... Nb8 {[%clk 0:02:21.8]} 14. Bf1
{[%clk 0:02:58.6]} 14... Nbd7 {[%clk 0:02:17.4]} 15. b4 {[%clk 0:02:57.8]} 15...
a5 {[%clk 0:02:07.1]} 16. c3 {[%clk 0:02:57.9]} 16... axb4 {[%clk 0:02:06.4]}
17. cxb4 {[%clk 0:02:58]} 17... Nb6 {[%clk 0:02:07.3]} 18. Bg5 {[%clk 0:02:39]}
18... Nbxd5 {[%clk 0:02:04.7]} 19. Qb3 {[%clk 0:02:33.3]} 19... Qd7 {[%clk
0:01:35.2]} 20. Rad1 {[%clk 0:02:30.8]} 20... Rc3 {[%clk 0:01:26]} 21. Qa2
{[%clk 0:02:26.9]} 21... Qxa4 {[%clk 0:01:19.4]} 22. Ra1 {[%clk 0:01:44]} 22...
Nxb4 {[%clk 0:01:10.9]} 23. Qb2 {[%clk 0:01:38.8]} 23... Qb3 {[%clk 0:00:57]}
24. Qd2 {[%clk 0:01:29.1]} 24... Rfc8 {[%clk 0:00:18.6]} 25. Reb1 {[%clk
0:01:25.8]} 25... Qa4 {[%clk 0:00:16.8]} 26. Nb5 {[%clk 0:01:25.4]} 26... Qxa1
{[%clk 0:00:09.8]} 27. Rxa1 {[%clk 0:01:25]} 27... Ne4 {[%clk 0:00:10.2]} 28.
Qb2 {[%clk 0:00:46.7]} 28... Rc2 {[%clk 0:00:07.3]} 29. Qxb4 {[%clk 0:00:46.2]}
29... Nxg5 {[%clk 0:00:07.2]} 30. Nxd6 {[%clk 0:00:39.4]} 30... R2c6 {[%clk
0:00:04.6]} 31. Qg4 {[%clk 0:00:21.4]} 31... Bxd6 {[%clk 0:00:02.1]} 32. Qxg5
{[%clk 0:00:21.3]} 1-0

[Event "*** Titled Tuesday Blitz"]
[Site "Chess.com"]
[Date "2020.05.12"]
[Round "10"]
[White "zmeeed67"]
[Black "TheoSlade"]
[Result "0-1"]
[WhiteElo "2399"]
[BlackElo "2281"]
[TimeControl "180+1"]
[EndTime "11:53:31 PDT"]
[Termination "TheoSlade won on time"]

1. d4 {[%clk 0:03:00.9]} 1... Nf6 {[%clk 0:03:00.1]} 2. c4 {[%clk 0:03:01.4]}
2... e6 {[%clk 0:03:00.6]} 3. Nc3 {[%clk 0:03:00.7]} 3... Bb4 {[%clk 0:03:01]}
4. f3 {[%clk 0:03:00.3]} 4... O-O {[%clk 0:03:01]} 5. e4 {[%clk 0:03:00.2]} 5...
d5 {[%clk 0:03:01.5]} 6. cxd5 {[%clk 0:03:00.7]} 6... exd5 {[%clk 0:03:02.4]} 7.
e5 {[%clk 0:03:01.5]} 7... Nh5 {[%clk 0:02:56.8]} 8. Be3 {[%clk 0:02:38.4]} 8...
Qh4+ {[%clk 0:02:19.7]} 9. Bf2 {[%clk 0:02:37.2]} 9... Qe7 {[%clk 0:02:20.2]}
10. Bd3 {[%clk 0:02:02.5]} 10... Nf4 {[%clk 0:02:16.8]} 11. g3 {[%clk
0:02:00.2]} 11... Nxd3+ {[%clk 0:02:15.5]} 12. Qxd3 {[%clk 0:02:01.1]} 12... f6
{[%clk 0:02:11.1]} 13. f4 {[%clk 0:02:01.3]} 13... fxe5 {[%clk 0:02:10.6]} 14.
dxe5 {[%clk 0:02:02.2]} 14... c6 {[%clk 0:02:04.6]} 15. Ne2 {[%clk 0:01:58.7]}
15... Bf5 {[%clk 0:02:04.5]} 16. Qd4 {[%clk 0:01:45.3]} 16... Bh3 {[%clk
0:01:58.2]} 17. O-O-O {[%clk 0:01:30.6]} 17... Nd7 {[%clk 0:01:53.5]} 18. Be3
{[%clk 0:01:10.3]} 18... Nb6 {[%clk 0:01:51.9]} 19. Bd2 {[%clk 0:00:31.1]} 19...
c5 {[%clk 0:01:47.8]} 20. Qd3 {[%clk 0:00:30.9]} 20... Bf5 {[%clk 0:01:47.4]}
21. Qf3 {[%clk 0:00:30.3]} 21... d4 {[%clk 0:01:44.9]} 22. Nd5 {[%clk
0:00:30.3]} 22... Bxd2+ {[%clk 0:01:39.6]} 23. Rxd2 {[%clk 0:00:29.7]} 23...
Nxd5 {[%clk 0:01:32.5]} 24. Qxd5+ {[%clk 0:00:30.6]} 24... Be6 {[%clk
0:01:32.9]} 25. Qe4 {[%clk 0:00:22.4]} 25... Qc7 {[%clk 0:01:19.3]} 26. Rf1
{[%clk 0:00:19.9]} 26... Qa5 {[%clk 0:01:13]} 27. b3 {[%clk 0:00:18.2]} 27...
Qa3+ {[%clk 0:01:04.5]} 28. Rb2 {[%clk 0:00:16.2]} 28... c4 {[%clk 0:01:02.8]}
29. Qxd4 {[%clk 0:00:08.8]} 29... c3 {[%clk 0:01:02.7]} 30. Nxc3 {[%clk
0:00:07.4]} 30... Rfd8 {[%clk 0:00:59.2]} 31. Qa4 {[%clk 0:00:04.5]} 31... Qc5
{[%clk 0:00:57.1]} 32. Rc2 {[%clk 0:00:04.6]} 32... Rac8 {[%clk 0:00:55.5]} 33.
Rff2 {[%clk 0:00:04]} 33... Bf5 {[%clk 0:00:55]} 34. Qc4+ {[%clk 0:00:01.6]}
34... Qxc4 {[%clk 0:00:53.2]} 35. bxc4 {[%clk 0:00:02.5]} 35... Bxc2 {[%clk
0:00:53.8]} 36. Rxc2 {[%clk 0:00:03.4]} 36... Rxc4 {[%clk 0:00:54.3]} 37. Nb5
{[%clk 0:00:02]} 37... Rxc2+ {[%clk 0:00:52.2]} 38. Kxc2 {[%clk 0:00:02.9]}
38... Rc8+ {[%clk 0:00:51.4]} 39. Kd3 {[%clk 0:00:02.7]} 39... a6 {[%clk
0:00:49.4]} 40. Nd6 {[%clk 0:00:02.8]} 40... Rc7 {[%clk 0:00:50]} 41. e6 {[%clk
0:00:01.9]} 41... Rc6 {[%clk 0:00:43.4]} 42. e7 {[%clk 0:00:01]} 42... Rxd6+
{[%clk 0:00:43.4]} 43. Ke4 {[%clk 0:00:01.4]} 43... Kf7 {[%clk 0:00:43.7]} 0-1